bitfinex/quotes_SOLUSD_20240718
["timestamp","ask_amount","ask_price","bid_price","bid_amount"]
[1721298746958,1.0,158.89,158.84,12.19]
[1721298747156,1.0,158.89,158.85,46.25891112]
[1721298748067,6.56512261,158.9,158.86,1.25886048]
[1721298748779,12.19,158.91,158.86,1.25886048]
[1721298748988,1.0,158.9,158.86,1.25886048]
[1721298749355,6.56408062,158.92,158.86,1.25886048]
[1721298749562,12.19,158.91,158.86,13.44886048]
[1721298749758,12.19,158.91,158.87,45.0]
[1721298749963,1.0,158.9,158.87,46.25866403]
[1721298750174,13.19,158.91,158.87,45.0]
[1721298750467,12.19,158.9,158.87,45.0]
[1721298750767,12.19,158.9,158.86,45.0]
[1721298751070,13.19,158.89,158.86,45.0]
[1721298751263,13.19,158.89,158.85,45.0]
[1721298751468,12.19,158.87,158.81,13.44893105]
[1721298751774,1.0,158.86,158.82,12.19]
[1721298751967,1.0,158.87,158.83,1.25904689]
[1721298752181,12.19,158.87,158.83,1.25904689]
[1721298752874,12.19,158.87,158.83,46.25904689]
[1721298753069,12.19,158.87,158.83,45.0]
[1721298753464,12.19,158.87,158.84,1.25904396]
[1721298753673,12.19,158.87,158.83,45.0]
[1721298755764,12.19,158.87,158.83,46.2590339]
[1721298755966,13.19,158.88,158.83,46.2590339]
[1721298757173,12.19,158.88,158.83,46.2590339]
[1721298757367,1.0,158.9,158.83,58.4490339]
[1721298757571,12.19,158.88,158.83,58.4490339]
[1721298760077,1.0,158.89,158.83,58.4490339]
[1721298760269,18.76058342,158.9,158.83,46.2590339]
[1721298760471,18.76058342,158.9,158.84,12.19]
[1721298760671,18.76058342,158.9,158.85,46.25882216]
[1721298760983,18.76058342,158.9,158.86,1.25882163]
[1721298762583,1.0,158.89,158.86,1.25882163]
[1721298763964,13.19,158.89,158.85,45.0]
[1721298764189,13.19,158.89,158.85,46.25887063]
[1721298765279,13.19,158.89,158.86,45.0]
[1721298765581,13.19,158.89,158.85,1.25886123]
[1721298765986,13.19,158.89,158.84,57.19]
[1721298766188,1.0,158.89,158.84,45.0]
[1721298766370,13.19,158.89,158.84,58.44893798]
[1721298767376,6.57058342,158.9,158.85,1.25883566]
[1721298767377,19.76058342,158.9,158.85,1.25883566]
[1721298767577,1.0,158.89,158.85,1.25883566]
[1721298768072,13.19,158.89,158.85,1.25883566]
[1721298768774,1.0,158.89,158.84,57.19]
[1721298769174,1.0,158.89,158.85,1.25880911]
[1721298769374,18.76058342,158.9,158.85,1.25880911]
[1721298769592,18.76058342,158.9,158.85,13.44880911]
[1721298769888,18.76058342,158.9,158.86,45.0]
[1721298771180,1.0,158.89,158.86,45.0]
[1721298771692,1.0,158.89,158.85,45.0]
[1721298771889,13.19,158.89,158.85,46.2588489]
[1721298772097,13.19,158.89,158.85,1.2588489]
[1721298773088,13.19,158.89,158.84,46.25884867]
[1721298773873,1.0,158.89,158.84,58.44884867]
[1721298774074,1.0,158.89,158.85,1.25888855]
[1721298776379,13.19,158.89,158.85,1.25888855]
[1721298777387,13.19,158.89,158.84,46.25889471]
[1721298777588,12.19,158.87,158.82,1.25899042]
[1721298777874,13.19,158.86,158.82,1.25899042]
[1721298778073,1.0,158.85,158.82,1.25899042]
[1721298778797,1.0,158.85,158.82,46.25899042]
[1721298779676,1.0,158.85,158.78,10.91306309]
[1721298779873,1.0,158.85,158.77,13.44940335]
[1721298779874,12.19,158.82,158.77,13.44940335]
[1721298781081,12.19,158.82,158.78,45.0]
[1721298781999,12.19,158.82,158.77,1.25940335]
[1721298782000,12.19,158.82,158.77,46.25940335]
[1721298782207,13.19,158.82,158.77,58.44940335]
[1721298782881,13.19,158.82,158.78,1.25945039]
[1721298783194,12.19,158.82,158.78,1.25945039]
[1721298786478,1.0,158.81,158.77,12.19]
[1721298786683,12.19,158.78,158.74,1.25944997]
[1721298786898,12.19,158.76,158.71,1.25979119]
[1721298787108,12.19,158.8,158.71,1.25979119]
[1721298787109,1.0,158.75,158.71,1.25979119]
[1721298787404,12.19,158.74,158.71,1.25979119]
[1721298787779,1.0,158.77,158.72,1.25998068]
[1721298787982,12.19,158.76,158.7,13.44979691]
[1721298788183,12.19,158.76,158.71,1.25982202]
[1721298788489,12.19,158.75,158.71,1.25982202]
[1721298789901,12.19,158.75,158.71,46.25982202]
[1721298792404,12.19,158.76,158.71,58.44982202]
[1721298792603,6.57603645,158.77,158.71,58.44982202]
[1721298792811,22.3437,158.82,158.73,12.19]
[1721298793018,12.19,158.8,158.74,58.44949137]
[1721298793217,12.19,158.8,158.75,12.19]
[1721298793506,12.19,158.8,158.76,46.25949671]
[1721298793714,12.19,158.8,158.77,1.2595167]
[1721298794015,12.19,158.81,158.77,1.2595167]
[1721298796117,12.19,158.84,158.78,12.19]
[1721298796310,18.4856,158.84,158.79,46.25931367]
[1721298796508,12.19,158.82,158.79,45.0]
[1721298796690,13.19,158.81,158.78,45.0]
[1721298797292,12.19,158.81,158.78,45.0]
[1721298797500,12.19,158.81,158.79,1.25945444]
[1721298798318,12.19,158.83,158.79,1.25945444]
[1721298798520,12.19,158.83,158.78,1.25938753]
[1721298800618,6.57302818,158.84,158.78,1.25938753]
[1721298800805,12.19,158.83,158.78,1.25938753]
[1721298801419,12.19,158.83,158.78,13.44938753]
[1721298801597,12.19,158.83,158.79,45.0]
[1721298801802,13.19,158.84,158.8,1.25932029]
[1721298802006,12.19,158.83,158.8,1.25932029]
[1721298802522,1.0,158.82,158.79,45.0]
[1721298802695,13.19,158.82,158.78,45.0]
[1721298802896,13.19,158.82,158.77,45.0]
[1721298803211,12.19,158.8,158.77,46.25941647]
[1721298803410,12.19,158.8,158.78,45.0]
[1721298803601,12.19,158.8,158.77,1.25941647]
[1721298805006,12.19,158.81,158.77,1.25941647]
[1721298805314,13.19,158.82,158.77,1.25941647]
[1721298805493,12.19,158.82,158.77,13.44941647]
[1721298805690,12.19,158.83,158.78,45.0]
[1721298805918,12.19,158.83,158.79,1.2593275]
[1721298807101,13.19,158.82,158.78,45.0]
[1721298807324,13.19,158.82,158.78,1.25939321]
[1721298807841,1.0,158.82,158.78,1.25939321]
[1721298808134,1.0,158.84,158.78,1.25939321]
[1721298808304,12.19,158.84,158.79,12.19]
[1721298808510,19.7663907,158.85,158.8,58.4492949]
[1721298808705,19.7663907,158.85,158.8,13.4492949]
[1721298808912,19.7663907,158.85,158.81,45.0]
[1721298809111,12.19,158.84,158.81,45.0]
[1721298809413,12.19,158.84,158.8,46.2592949]
[1721298813634,12.19,158.84,158.81,1.2592044]
[1721298814533,12.19,158.84,158.8,1.25920171]
[1721298815702,1.0,158.83,158.79,45.0]
[1721298815907,13.19,158.83,158.79,45.0]
[1721298816131,13.19,158.83,158.8,1.25932822]
[1721298816328,1.0,158.83,158.8,1.25932822]
[1721298816536,13.19,158.84,158.8,1.25932822]
[1721298817022,7.2957,158.84,158.79,45.0]
[1721298817249,12.19,158.83,158.79,46.25930628]
[1721298817535,12.19,158.83,158.8,1.25930628]
[1721298817906,12.19,158.83,158.79,45.0]
[1721298818339,12.19,158.83,158.78,45.0]
[1721298818634,12.19,158.83,158.79,1.2593234]
[1721298820726,13.19,158.82,158.78,45.0]
[1721298821041,12.19,158.81,158.75,27.2824]
[1721298821421,12.19,158.8,158.75,27.2824]
[1721298821916,12.19,158.8,158.75,12.19]
[1721298822336,1.0,158.79,158.71,32.03413746]
[1721298822537,12.19,158.78,158.73,12.19]
[1721298822841,12.19,158.78,158.74,1.25978193]
[1721298823628,1.0,158.77,158.72,1.25977984]
[1721298823830,1.0,158.77,158.72,12.19]
[1721298824151,1.0,158.77,158.73,1.25986599]
[1721298825143,1.0,158.77,158.73,46.25986599]
[1721298825324,1.0,158.77,158.73,45.0]
[1721298825633,1.0,158.79,158.74,1.25986524]
[1721298825940,13.19,158.79,158.74,1.25986524]
[1721298826326,13.19,158.79,158.74,13.44986524]
[1721298826526,13.19,158.79,158.75,45.0]
[1721298826727,12.19,158.79,158.76,1.25968337]
[1721298826931,22.1794,158.8,158.76,1.25968337]
[1721298826932,35.3694,158.8,158.76,1.25968337]
[1721298827115,12.19,158.78,158.75,45.0]
[1721298827316,12.19,158.78,158.74,45.0]
[1721298827538,12.19,158.78,158.75,1.25968846]
[1721298828630,12.19,158.78,158.74,45.0]
[1721298828932,19.4884,158.77,158.74,45.0]
[1721298829138,13.19,158.77,158.74,45.0]
[1721298829324,12.19,158.76,158.74,45.0]
[1721298829719,1.0,158.75,158.74,45.0]
[1721298830241,1.0,158.76,158.74,45.0]
[1721298830449,13.19,158.77,158.74,45.0]
[1721298830945,1.0,158.76,158.73,45.0]
[1721298831129,1.0,158.76,158.72,45.0]
[1721298831338,13.19,158.76,158.72,45.0]
[1721298831550,13.19,158.76,158.71,45.0]
[1721298831840,13.19,158.76,158.71,46.25990714]
[1721298832023,1.0,158.75,158.68,1.25990729]
[1721298832225,12.19,158.72,158.68,1.25990729]
[1721298832440,1.0,158.71,158.67,12.19]
[1721298832641,12.19,158.73,158.68,1.26021566]
[1721298832843,1.0,158.72,158.68,1.26021566]
[1721298833431,1.0,158.72,158.68,13.45021566]
[1721298833638,1.0,158.72,158.69,45.0]
[1721298836141,1.0,158.72,158.68,45.0]
[1721298836343,1.0,158.72,158.68,46.26021506]
[1721298837055,13.19,158.72,158.68,46.26021506]
[1721298837351,1.0,158.72,158.68,46.26021506]
[1721298837647,1.0,158.72,158.68,45.0]
[1721298838945,13.19,158.73,158.69,1.2602144]
[1721298839157,12.19,158.73,158.69,1.2602144]
[1721298839933,13.19,158.74,158.69,1.2602144]
[1721298840141,13.19,158.73,158.69,1.2602144]
[1721298840340,12.19,158.72,158.69,1.2602144]
[1721298840838,12.19,158.72,158.68,45.0]
[1721298841039,7.3,158.73,158.67,45.0]
[1721298841040,13.19,158.71,158.67,45.0]
[1721298841247,12.19,158.71,158.68,1.26021638]
[1721298841747,12.19,158.71,158.67,46.26021651]
[1721298841950,12.19,158.71,158.67,45.0]
[1721298842145,12.19,158.71,158.68,1.26024838]
[1721298842353,12.19,158.71,158.67,1.26024594]
[1721298842524,6.57925623,158.72,158.68,1.26022062]
[1721298842724,28.7005,158.73,158.68,46.26022062]
[1721298843346,12.19,158.72,158.68,46.26022062]
[1721298843851,28.7005,158.73,158.68,58.45022062]
[1721298844155,6.57957823,158.75,158.7,12.19]
[1721298844349,6.2986,158.77,158.71,58.44995854]
[1721298844652,18.7718338,158.77,158.72,13.44991967]
[1721298844961,18.7718338,158.77,158.73,45.0]
[1721298846066,1.0,158.76,158.72,45.0]
[1721298846241,7.2988,158.76,158.73,1.25984131]
[1721298846442,19.4888,158.76,158.73,1.25984131]
[1721298846748,1.0,158.76,158.73,1.25984131]
[1721298846944,25.0703338,158.77,158.73,1.25984131]
[1721298847139,26.0703338,158.77,158.73,1.25984131]
[1721298849155,6.2988,158.76,158.73,1.25984131]
[1721298849553,12.8803338,158.77,158.73,1.25984131]
[1721298849750,6.2985,158.77,158.73,1.25984131]
[1721298851471,16.3301,158.78,158.73,13.44984131]
[1721298851675,16.3301,158.78,158.74,45.0]
[1721298851966,16.3301,158.78,158.75,1.25970943]
[1721298852463,12.19,158.78,158.75,1.25970943]
[1721298852673,13.19,158.78,158.75,1.25970943]
[1721298852876,1.0,158.78,158.75,1.25970943]
[1721298853167,6.2981,158.78,158.75,1.25970943]
[1721298854062,7.2981,158.78,158.75,1.25970943]
[1721298854364,6.2981,158.78,158.75,1.25970943]
[1721298856151,26.07102048,158.79,158.75,1.25970943]
[1721298856851,6.58332048,158.79,158.75,1.25970943]
[1721298857061,12.19,158.8,158.75,1.25970943]
[1721298857254,12.19,158.8,158.75,13.44970943]
[1721298857461,12.19,158.8,158.76,45.0]
[1721298857663,1.0,158.79,158.76,45.0]
[1721298858657,13.19,158.79,158.76,45.0]
[1721298858863,13.19,158.79,158.75,45.0]
[1721298859647,13.19,158.79,158.74,45.0]
[1721298860071,6.298,158.78,158.74,45.0]
[1721298860359,1.0,158.77,158.74,45.0]
[1721298861368,6.298,158.78,158.74,45.0]
[1721298861569,7.298,158.78,158.74,45.0]
[1721298861757,1.0,158.79,158.75,1.25979946]
[1721298862566,7.2976,158.79,158.75,1.25979946]
[1721298866374,19.4876,158.79,158.75,1.25979946]
[1721298867660,26.0698957,158.79,158.75,1.25979946]
[1721298869077,6.5822957,158.79,158.75,1.25979946]
[1721298869273,15.8827,158.82,158.78,12.19]
[1721298869450,6.58005375,158.84,158.79,58.44934612]
[1721298869761,6.58005375,158.84,158.8,13.44934597]
[1721298869967,1.0,158.85,158.8,58.44934597]
[1721298870472,13.19,158.85,158.8,58.44934597]
[1721298870785,19.4852,158.85,158.8,58.44934597]
[1721298871084,12.19,158.84,158.8,46.25934597]
[1721298871448,19.4852,158.85,158.8,58.44934597]
[1721298871650,13.19,158.85,158.8,58.44934597]
[1721298872269,19.4853,158.85,158.8,58.44934597]
[1721298872476,19.4853,158.85,158.8,46.25934597]
[1721298872687,12.19,158.84,158.8,46.25934597]
[1721298873385,19.4853,158.85,158.8,58.44934597]
[1721298874755,18.77170701,158.87,158.81,12.19]
[1721298875060,6.58170701,158.87,158.82,46.25907187]
[1721298875267,1.0,158.86,158.83,1.25907166]
[1721298875688,7.58170701,158.87,158.83,13.44907166]
[1721298875860,19.77170701,158.87,158.84,45.0]
[1721298876259,19.77170701,158.87,158.83,45.0]
[1721298876459,19.77170701,158.87,158.83,46.25903911]
[1721298876678,19.77170701,158.87,158.83,45.0]
[1721298877780,6.58170701,158.87,158.84,1.259015]
[1721298879672,12.87620701,158.87,158.83,45.0]
[1721298879877,12.87620701,158.87,158.83,46.25901784]
[1721298880884,12.87620701,158.87,158.83,45.0]
[1721298881883,6.58170701,158.87,158.83,45.0]
[1721298882279,6.58170701,158.87,158.83,57.19]
[1721298882998,6.58170701,158.87,158.84,1.25900537]
[1721298887697,6.58170701,158.87,158.83,45.0]
[1721298887869,13.19,158.86,158.83,45.0]
[1721298888072,13.19,158.86,158.82,45.0]
[1721298888282,13.19,158.86,158.81,45.0]
[1721298888491,13.19,158.86,158.81,46.25909437]
[1721298889809,1.0,158.85,158.81,45.0]
[1721298891607,13.19,158.86,158.81,46.25909524]
[1721298891810,13.19,158.86,158.81,45.0]
[1721298891978,1.0,158.85,158.81,45.0]
[1721298892597,13.19,158.86,158.82,1.25909509]
[1721298893297,13.19,158.86,158.81,45.0]
[1721298893504,13.19,158.86,158.81,57.19]
[1721298894572,1.0,158.85,158.81,57.19]
[1721298894788,13.19,158.85,158.81,45.0]
[1721298894991,12.19,158.84,158.78,12.19]
[1721298895304,1.0,158.83,158.78,12.19]
[1721298896907,1.0,158.83,158.79,45.0]
[1721298898701,1.0,158.83,158.79,57.19]
[1721298899006,13.19,158.84,158.79,57.19]
[1721298899494,13.19,158.84,158.79,45.0]
[1721298900309,12.19,158.83,158.79,45.0]
[1721298900480,13.19,158.84,158.79,46.25938206]
[1721298901004,13.19,158.84,158.79,58.44938206]
[1721298901304,6.58235572,158.85,158.83,12.19]
[1721298901604,15.1069,158.89,158.8,1.25934771]
[1721298901605,6.0782,158.9,158.84,58.44887059]
[1721298901910,6.0782,158.9,158.87,12.19]
[1721298902087,6.0782,158.9,158.88,45.0]
[1721298904182,1.0,158.92,158.89,45.0]
[1721298905908,1.0,158.92,158.84,1.2585943]
[1721298905909,12.19,158.91,158.84,1.2585943]
[1721298906214,6.2951,158.86,158.83,1.2587655]
[1721298906404,13.19,158.86,158.8,12.19]
[1721298906716,1.0,158.88,158.81,1.25905387]
[1721298906887,12.19,158.86,158.81,13.44905387]
[1721298907397,12.19,158.84,158.79,13.44911073]
[1721298907599,1.0,158.85,158.8,1.25918936]
[1721298907917,12.19,158.83,158.8,1.25918936]
[1721298908124,16.0884,158.86,158.8,1.25918936]
[1721298908406,15.0884,158.86,158.8,13.44918936]
[1721298908589,15.0884,158.86,158.81,12.19]
[1721298908790,18.1955,158.87,158.82,46.25902193]
[1721298908996,18.1955,158.87,158.83,1.25902286]
[1721298910295,6.0055,158.87,158.83,1.25902286]
[1721298910514,18.1955,158.87,158.83,1.25902286]
[1721298911014,12.19,158.87,158.83,1.25902286]
[1721298911194,12.19,158.88,158.83,13.44902286]
[1721298911517,12.19,158.88,158.84,45.0]
[1721298912710,12.19,158.88,158.85,1.25892677]
[1721298912911,12.19,158.88,158.84,45.0]
[1721298913107,18.4841,158.88,158.84,45.0]
[1721298913790,12.19,158.87,158.84,45.0]
[1721298913991,12.19,158.87,158.83,45.0]
[1721298914202,12.19,158.87,158.83,46.25893268]
[1721298914921,13.19,158.88,158.83,45.0]
[1721298915394,7.57758618,158.89,158.84,1.2588926]
[1721298915591,6.57758618,158.89,158.84,1.2588926]
[1721298915909,16.4678,158.94,158.88,12.19]
[1721298916088,28.6578,158.94,158.89,58.4484688]
[1721298916296,28.6578,158.94,158.9,46.25846938]
[1721298916896,12.19,158.94,158.9,46.25846938]
[1721298917304,6.57453378,158.95,158.91,1.25846986]
[1721298917615,19.76453378,158.95,158.91,1.25846986]
[1721298918198,6.57453378,158.95,158.91,13.44846986]
[1721298918516,6.57453378,158.95,158.92,45.0]
[1721298921799,18.76453378,158.95,158.92,45.0]
[1721298922003,12.19,158.94,158.91,45.0]
[1721298922322,12.19,158.93,158.9,45.0]
[1721298922517,12.19,158.93,158.89,45.0]
[1721298922825,12.19,158.93,158.87,12.19]
[1721298922826,13.19,158.92,158.87,12.19]
[1721298923032,13.19,158.92,158.88,1.2585736]
[1721298923193,12.19,158.92,158.88,1.2585736]
[1721298923399,18.4821,158.93,158.88,1.2585736]
[1721298923620,19.4825,158.92,158.88,1.2585736]
[1721298923826,19.4825,158.92,158.88,46.2585736]
[1721298924015,13.19,158.92,158.88,45.0]
[1721298924397,1.0,158.93,158.89,1.25862192]
[1721298924602,12.19,158.93,158.89,1.25862192]
[1721298927934,13.19,158.94,158.89,13.44862192]
[1721298928233,13.19,158.94,158.9,45.0]
[1721298928529,12.19,158.94,158.9,46.25846735]
[1721298928823,1.0,158.93,158.9,46.25846735]
[1721298929030,13.19,158.93,158.9,1.25846735]
[1721298929230,12.19,158.93,158.9,1.25846735]
[1721298929408,12.19,158.94,158.9,1.25846735]
[1721298929804,19.76453378,158.95,158.9,1.25846735]
[1721298930430,12.19,158.94,158.9,1.25846735]
[1721298930816,18.76453378,158.95,158.9,1.25846735]
[1721298931017,19.76453378,158.95,158.9,1.25846735]
[1721298931912,12.19,158.94,158.9,1.25846735]
[1721298932940,18.76453378,158.95,158.9,13.44846735]
[1721298933115,12.19,158.95,158.91,45.0]
[1721298933437,12.19,158.96,158.92,1.25834251]
[1721298933816,18.4809,158.96,158.92,1.25834251]
[1721298934424,6.57045216,158.97,158.93,1.2583512]
[1721298934636,12.19,158.97,158.93,1.2583512]
[1721298934935,12.19,158.97,158.93,46.2583512]
[1721298936349,19.76488817,158.99,158.93,58.4483512]
[1721298936511,18.76488817,158.99,158.93,58.4483512]
[1721298937016,18.76488817,158.99,158.94,12.19]
[1721298937211,18.76488817,158.99,158.95,46.25803573]
[1721298937439,18.76488817,158.99,158.96,1.2580352]
[1721298938119,25.05468817,158.99,158.96,1.2580352]
[1721298938928,6.57488817,158.99,158.96,1.2580352]
[1721298939119,18.4793,159.0,158.96,1.2580352]
[1721298940119,6.57695586,159.01,158.96,13.4480352]
[1721298940322,13.19,159.01,158.97,45.0]
[1721298940516,20.2987528,159.02,158.98,1.25787183]
[1721298941143,14.0100528,159.02,158.98,1.25787183]
[1721298941449,0.8200528,159.02,158.97,57.19]
[1721298941623,13.0100528,159.02,158.98,1.25776093]
[1721298941825,0.8200528,159.02,158.98,13.44776093]
[1721298942019,19.2986528,159.02,158.99,45.0]
[1721298942362,19.9789,159.01,158.97,46.257849]
[1721298942635,12.19,159.0,158.97,46.257849]
[1721298942842,12.19,159.01,158.98,45.0]
[1721298943049,12.19,159.01,158.97,1.257849]
[1721298943221,13.0100528,159.02,158.98,1.25780263]
[1721298943420,0.8200528,159.02,158.99,1.25777372]
[1721298943618,13.0100528,159.02,158.99,1.25777372]
[1721298944116,0.8200528,159.02,158.99,1.25777372]
[1721298944926,13.0100528,159.02,158.99,1.25777372]
[1721298945136,0.8200528,159.02,158.99,1.25777372]
[1721298945320,0.8200528,159.02,158.99,13.44777372]
[1721298945519,0.8200528,159.02,159.0,45.0]
[1721298945741,0.8200528,159.02,158.99,1.25777372]
[1721298948836,13.0100528,159.02,158.99,1.25777372]
[1721298949746,14.5100528,159.02,158.99,1.25777372]
[1721298949933,13.0100528,159.02,158.99,1.25777372]
[1721298950130,0.8200528,159.02,158.99,1.25777372]
[1721298951539,0.8200528,159.02,158.98,45.0]
[1721298951753,12.19,159.01,158.98,45.0]
[1721298951960,12.19,159.01,158.97,45.0]
[1721298952249,2.3200528,159.02,158.98,1.2578495]
[1721298952455,0.8200528,159.02,158.98,1.2578495]
[1721298952656,14.5100528,159.02,158.98,1.2578495]
[1721298953453,13.0100528,159.02,158.98,1.2578495]
[1721298954943,0.8200528,159.02,158.98,1.2578495]
[1721298955161,0.8200528,159.02,158.98,13.4478495]
[1721298955457,0.8200528,159.02,158.99,57.19]
[1721298955663,0.8200528,159.02,159.0,1.25767536]
[1721298956854,0.8200528,159.02,159.0,13.44767536]
[1721298957160,0.8200528,159.02,159.01,45.0]
[1721298959765,0.8200528,159.02,159.0,45.0]
[1721298959938,0.8200528,159.02,159.01,1.0158086]
[1721298960139,0.8200528,159.02,159.0,45.0]
[1721298960343,13.0100528,159.02,159.0,45.0]
[1721298960555,14.5100528,159.02,158.96,12.19]
[1721298960759,13.0100528,159.02,158.97,12.19]
[1721298960956,13.0100528,159.02,158.98,1.25779922]
[1721298961163,0.8200528,159.02,158.99,1.2577957]
[1721298961670,0.8200528,159.02,158.99,13.4477957]
[1721298961876,0.8200528,159.02,159.0,46.25762651]
[1721298965273,0.8200528,159.02,159.0,58.44762651]
[1721298967408,0.8200528,159.02,159.01,12.19]
[1721298967559,0.8200528,159.02,159.01,57.19]
[1721298968970,0.8200528,159.02,159.01,45.0]
[1721298969164,0.8200528,159.02,159.01,46.25754015]
[1721298969367,0.8200528,159.02,159.01,58.44754015]
[1721298970060,0.8200528,159.02,159.01,57.19]
[1721298972099,0.8200528,159.02,159.01,58.78728645]
[1721298972291,0.8200528,159.02,159.01,79.17207106]
[1721298972587,0.8200528,159.02,159.01,60.24207106]
[1721298974773,6.57398712,159.11,159.01,79.17207106]
[1721298974994,6.57398712,159.11,159.09,12.19]
[1721298975286,12.19,159.14,159.1,46.2568801]
[1721298975473,8.0717125,159.15,159.11,1.25681856]
[1721298975668,8.0717125,159.15,159.11,46.25681856]
[1721298975669,20.2617125,159.15,159.11,46.25681856]
[1721298975880,20.2617125,159.15,159.11,45.0]
[1721298976079,20.2617125,159.15,159.11,44.5]
[1721298976770,12.19,159.14,159.11,44.5]
[1721298977084,12.19,159.14,159.09,12.19]
[1721298977388,20.2617125,159.15,159.1,13.44681601]
[1721298977963,6.5717125,159.15,159.1,13.44681601]
[1721298978283,12.19,159.14,159.11,45.0]
[1721298978591,12.19,159.14,159.1,45.0]
[1721298979386,7.7842,159.13,159.05,1.25687305]
[1721298979685,19.9742,159.13,159.07,12.19]
[1721298979863,19.9742,159.13,159.08,1.2569691]
[1721298980268,6.2852,159.11,159.03,1.25696916]
[1721298980463,12.19,159.1,159.05,12.19]
[1721298980690,12.19,159.12,159.07,12.19]
[1721298980890,12.19,159.12,159.08,1.25700749]
[1721298981573,13.69,159.13,159.08,1.25700749]
[1721298981767,13.69,159.13,159.08,46.25700749]
[1721298981969,13.69,159.13,159.09,1.0143802]
[1721298983602,19.9742,159.13,159.09,1.0143802]
[1721298983775,12.19,159.11,159.08,45.0]
[1721298984092,18.4747,159.12,159.07,57.19]
[1721298984289,12.19,159.12,159.08,1.25709373]
[1721298984492,13.69,159.12,159.08,1.25709373]
[1721298985888,19.9747,159.12,159.07,57.19]
[1721298986300,12.19,159.11,159.07,45.0]
[1721298986509,13.69,159.11,159.07,45.0]
[1721298987500,13.69,159.11,159.08,1.25712115]
[1721298987910,13.69,159.11,159.08,1.25710332]
[1721298988091,1.5,159.11,159.08,1.25710332]
[1721298988291,12.19,159.12,159.08,1.25710332]
[1721298988495,18.4741,159.13,159.08,1.25710332]
[1721298988805,18.76274142,159.13,159.08,1.25710332]
[1721298989310,13.69,159.12,159.08,1.25710332]
[1721298989882,1.5,159.12,159.03,1.25701802]
[1721298990093,12.19,159.1,159.04,12.19]
[1721298990288,12.19,159.1,159.02,23.32649312]
[1721298990289,12.19,159.08,159.05,1.01535003]
[1721298990493,12.19,159.08,159.02,13.64469312]
[1721298990691,12.19,159.08,159.03,1.25729389]
[1721298990906,12.19,159.09,159.03,13.44729389]
[1721298991577,12.19,159.09,159.04,45.0]
[1721298991808,12.19,159.09,159.05,1.25726584]
[1721298991989,13.69,159.08,159.04,45.0]
[1721298992314,13.69,159.08,159.05,1.25737346]
[1721298993096,13.69,159.08,159.04,45.0]
[1721298993286,13.69,159.08,159.03,45.0]
[1721298993485,13.69,159.08,159.03,46.25740402]
[1721298995012,12.19,159.07,159.03,45.0]
[1721298995313,7.7862,159.08,159.03,45.0]
[1721298995505,12.19,159.06,159.02,45.0]
[1721298995810,12.19,159.06,159.03,1.01548913]
[1721298997086,12.19,159.07,159.03,1.01548913]
[1721298997424,13.69,159.09,159.03,13.20548913]
[1721298997593,12.19,159.09,159.04,45.0]
[1721298997786,12.19,159.09,159.05,1.25721675]
[1721298998510,16.6234,159.11,159.05,13.44721675]
[1721298998511,12.19,159.11,159.05,13.44721675]
[1721298998702,12.19,159.11,159.06,57.19]
[1721298998899,8.07274142,159.13,159.07,58.44702091]
[1721298998900,12.19,159.12,159.07,58.44702091]
[1721298999198,12.19,159.12,159.08,1.2570199]